Department family,Entity,Allocation Date,Expense type,Expense Area,Supplier,Transaction Number,Amount in Sterling
Government Equalities Office,Equality and Human Rights Commission,04/05/2011,Accommodation,Corporate Management - People,Expotel,201105011,"1,940.94"
Government Equalities Office,Equality and Human Rights Commission,04/05/2011,Accommodation,Scotland - Directorate,Expotel,201105005,513.93
Government Equalities Office,Equality and Human Rights Commission,04/05/2011,Accommodation,Strategy - Foresight,Expotel,201105007,805.03
Government Equalities Office,Equality and Human Rights Commission,04/05/2011,Accommodation,Strategy - Policy Private,Expotel,201105006,695.21
Government Equalities Office,Equality and Human Rights Commission,04/05/2011,Accommodation,Strategy - Policy Public,Expotel,201105009,"1,358.11"
Government Equalities Office,Equality and Human Rights Commission,04/05/2011,Accommodation,Strategy Research,Expotel,201105008,822.73
Government Equalities Office,Equality and Human Rights Commission,04/05/2011,Accommodation,Corporate Management - ICT,Expotel,201105004,"-1,242.00"
Government Equalities Office,Equality and Human Rights Commission,04/05/2011,Accommodation,Corporate Management - ICT,Expotel,201105010,"1,380.03"
Government Equalities Office,Equality and Human Rights Commission,11/05/2011,Agency Staff,Corporate Management - Finance,Badenoch & Clark,iPOS Invoice 40047,"1,046.74"
Government Equalities Office,Equality and Human Rights Commission,11/05/2011,Agency Staff,Corporate Management - Finance,Badenoch & Clark,iPOS Invoice 40038,"1,308.42"
Government Equalities Office,Equality and Human Rights Commission,11/05/2011,Agency Staff,Corporate Management - Finance,Badenoch & Clark,iPOS Invoice 40039,"1,308.42"
Government Equalities Office,Equality and Human Rights Commission,11/05/2011,Agency Staff,Corporate Management - Finance,Badenoch & Clark,iPOS Invoice 40046,"1,308.42"
Government Equalities Office,Equality and Human Rights Commission,11/05/2011,Agency Staff,Corporate Management - ICT,Badenoch & Clark,iPOS Invoice 40061,882.01
Government Equalities Office,Equality and Human Rights Commission,11/05/2011,Agency Staff,Corporate Management - ICT,Badenoch & Clark,iPOS Invoice 40034,"1,116.74"
Government Equalities Office,Equality and Human Rights Commission,18/05/2011,Agency Staff,Corporate Management - ICT,Badenoch & Clark,iPOS Invoice 40126,661.51
Government Equalities Office,Equality and Human Rights Commission,18/05/2011,Agency Staff,Corporate Management - ICT,Badenoch & Clark,iPOS Invoice 40127,839.34
Government Equalities Office,Equality and Human Rights Commission,11/05/2011,Agency Staff,Corporate Management - People,Digby Morgan Consulting Ltd,iPOS Invoice 40040,"16,916.46"
Government Equalities Office,Equality and Human Rights Commission,18/05/2011,Agency Staff,Corporate Management - People,Digby Morgan Consulting Ltd,iPOS Invoice 40107,"12,937.50"
Government Equalities Office,Equality and Human Rights Commission,18/05/2011,Agency Staff,Corporate Management - People,Digby Morgan Consulting Ltd,iPOS Invoice 40108,"13,063.96"
Government Equalities Office,Equality and Human Rights Commission,04/05/2011,Agency Staff,Intelligence & Engagement - External Affairs,Edenbrown,iPOS Invoice 39932,510.37
Government Equalities Office,Equality and Human Rights Commission,25/05/2011,Agency Staff,Intelligence & Engagement - External Affairs,Edenbrown,iPOS Invoice 40187,680.50
Government Equalities Office,Equality and Human Rights Commission,04/05/2011,Agency Staff,Strategy - Group Directorate,Edenbrown,iPOS Invoice 39938,702.00
Government Equalities Office,Equality and Human Rights Commission,04/05/2011,Agency Staff,Strategy - Group Directorate,Edenbrown,iPOS Invoice 39923,"1,764.72"
Government Equalities Office,Equality and Human Rights Commission,04/05/2011,Agency Staff,Strategy - Group Directorate,Edenbrown,iPOS Invoice 39924,"2,117.64"
Government Equalities Office,Equality and Human Rights Commission,04/05/2011,Agency Staff,Strategy - Group Directorate,Edenbrown,iPOS Invoice 39925,"2,117.64"
Government Equalities Office,Equality and Human Rights Commission,04/05/2011,Agency Staff,Strategy - Group Directorate,Edenbrown,iPOS Invoice 39926,"2,117.64"
Government Equalities Office,Equality and Human Rights Commission,11/05/2011,Agency Staff,Strategy - Policy Private,Hudson Global Resources Ltd,iPOS Invoice 40066,"2,346.42"
Government Equalities Office,Equality and Human Rights Commission,11/05/2011,Agency Staff,Corporate Management - Finance,Methods Consulting,iPOS Invoice 39919,-993.06
Government Equalities Office,Equality and Human Rights Commission,11/05/2011,Agency Staff,Corporate Management - Finance,Methods Consulting,iPOS Invoice 39918,-634.34
Government Equalities Office,Equality and Human Rights Commission,11/05/2011,Agency Staff,Corporate Management - Finance,Methods Consulting,iPOS Invoice 40048,"7,986.72"
Government Equalities Office,Equality and Human Rights Commission,18/05/2011,Agency Staff,Intelligence & Engagement - Stakeholder Relations,Morgan Law Partners LLP,iPOS Invoice 40128,569.16
Government Equalities Office,Equality and Human Rights Commission,18/05/2011,Agency Staff,Corporate Management - People,Penna,iPOS Invoice 40095,"10,476.00"
Government Equalities Office,Equality and Human Rights Commission,04/05/2011,Agency Staff,Intelligence & Engagement - External Affairs,Reed Employment,iPOS Invoice 39931,876.29
Government Equalities Office,Equality and Human Rights Commission,04/05/2011,Agency Staff,Corporate Management - People,Resource Innovations,iPOS Invoice 39928,"17,542.74"
Government Equalities Office,Equality and Human Rights Commission,11/05/2011,Agency Staff,Corporate Management - People,Resource Innovations,iPOS Invoice 40043,"10,369.84"
Government Equalities Office,Equality and Human Rights Commission,04/05/2011,Agency Staff,Corporate Management - Corporate Governance,Venn Group,iPOS Invoice 39948,"2,113.06"
Government Equalities Office,Equality and Human Rights Commission,04/05/2011,Agency Staff,Corporate Management - Corporate Governance,Venn Group,iPOS Invoice 39864,"2,208.26"
Government Equalities Office,Equality and Human Rights Commission,11/05/2011,Agency Staff,Corporate Management - Corporate Governance,Venn Group,iPOS Invoice 40044,"1,584.79"
Government Equalities Office,Equality and Human Rights Commission,18/05/2011,Agency Staff,Corporate Management - Corporate Governance,Venn Group,iPOS Invoice 40129,"2,113.06"
Government Equalities Office,Equality and Human Rights Commission,18/05/2011,Agency Staff,Corporate Management - Business Planning,Veredus,iPOS Invoice 40131,"18,438.00"
Government Equalities Office,Equality and Human Rights Commission,11/05/2011,Agency Staff,Corporate Management - People,Veredus,iPOS Invoice 40037,507.92
Government Equalities Office,Equality and Human Rights Commission,18/05/2011,Agency Staff,Corporate Management - People,Veredus,iPOS Invoice 40122,"15,697.50"
Government Equalities Office,Equality and Human Rights Commission,18/05/2011,Agency Staff,Intelligence & Engagement - External Affairs,Veredus,iPOS Invoice 40124,"11,385.00"
Government Equalities Office,Equality and Human Rights Commission,04/05/2011,Agency Staff,Intelligence & Engagement - Group Directorate,Veredus,iPOS Invoice 39930,"11,143.50"
Government Equalities Office,Equality and Human Rights Commission,11/05/2011,Agency Staff,Intelligence & Engagement - Group Directorate,Veredus,iPOS Invoice 40059,"9,936.00"
Government Equalities Office,Equality and Human Rights Commission,18/05/2011,Agency Staff,Intelligence & Engagement - Group Directorate,Veredus,iPOS Invoice 40125,"9,970.50"
Government Equalities Office,Equality and Human Rights Commission,04/05/2011,Agency Staff,Intelligence & Engagement - External Affairs,Xchangeteam Ltd,iPOS Invoice 39929,993.60
Government Equalities Office,Equality and Human Rights Commission,04/05/2011,ATW - Agency/Staff Costs,Corporate Management - Finance,Edenbrown,iPOS Invoice 39943,547.21
Government Equalities Office,Equality and Human Rights Commission,04/05/2011,ATW - Agency/Staff Costs,Corporate Management - Finance,Edenbrown,iPOS Invoice 39933,670.78
Government Equalities Office,Equality and Human Rights Commission,18/05/2011,ATW - Agency/Staff Costs,Corporate Management - Finance,Edenbrown,iPOS Invoice 40098,607.85
Government Equalities Office,Equality and Human Rights Commission,18/05/2011,ATW - Non Staff Expenditure,Corporate Management - Finance,Ace Taxis,iPOS Invoice 40179,"1,052.46"
Government Equalities Office,Equality and Human Rights Commission,18/05/2011,ATW - Non Staff Expenditure,Corporate Management - Finance,ATW - Non Staff Expenditure,iPOS Invoice 40062,"1,320.00"
Government Equalities Office,Equality and Human Rights Commission,04/05/2011,ATW - Non Staff Expenditure,Corporate Management - Finance,ATW - Non Staff Expenditure,iPOS Invoice 39945,540.00
Government Equalities Office,Equality and Human Rights Commission,18/05/2011,ATW - Non Staff Expenditure,Corporate Management - Finance,Bee Communications,iPOS Invoice 40063,527.04
Government Equalities Office,Equality and Human Rights Commission,18/05/2011,ATW - Non Staff Expenditure,Corporate Management - Finance,Merrill Legal Solutions,iPOS Invoice 40064,622.80
Government Equalities Office,Equality and Human Rights Commission,11/05/2011,ATW - Non Staff Expenditure,Corporate Management - Finance,Sttrs Direct,iPOS Invoice 39995,689.40
Government Equalities Office,Equality and Human Rights Commission,25/05/2011,Barristers Fees,Legal/Monitoring - Enforcement,Ben Emmerson QC,iPOS Invoice 40238,"1,269.00"
Government Equalities Office,Equality and Human Rights Commission,19/05/2011,Barristers Fees,Legal/Monitoring - Casework,David Stephenson,iPOS Invoice 40149,"3,661.18"
Government Equalities Office,Equality and Human Rights Commission,25/05/2011,Barristers Fees,Legal - Legal Policy,Declan O'Dempsey,iPOS Invoice 40184,"2,592.00"
Government Equalities Office,Equality and Human Rights Commission,18/05/2011,Barristers Fees,Legal/Monitoring - Enforcement,Helen Mountfield,iPOS Invoice 40142,"10,740.00"
Government Equalities Office,Equality and Human Rights Commission,19/05/2011,Barristers Fees,Legal/Monitoring - Casework,Jonathan Heard,iPOS Invoice 40116,998.75
Government Equalities Office,Equality and Human Rights Commission,11/05/2011,Barristers Fees,Legal - Legal Policy,Karon Monaghan,iPOS Invoice 40011,"6,336.00"
Government Equalities Office,Equality and Human Rights Commission,18/05/2011,Barristers Fees,Legal/Monitoring - Casework,Miss Catherine Casserley,iPOS Invoice 40118,"3,240.00"
Government Equalities Office,Equality and Human Rights Commission,11/05/2011,Barristers Fees,Legal/Monitoring - Enforcement,Peter Mant,iPOS Invoice 40052,900.00
Government Equalities Office,Equality and Human Rights Commission,11/05/2011,Business Rates,Corporate Management - Buildings,Glasgow City Council,iPOS Invoice 40070,"89,631.00"
Government Equalities Office,Equality and Human Rights Commission,25/05/2011,Business Rates,Corporate Management - Buildings,London Borough of Southwark,iPOS Invoice 40188,"6,915.00"
Government Equalities Office,Equality and Human Rights Commission,18/05/2011,Catering,Statutory Committee - Wales,Wales Millenium Centre,iPOS Invoice 40089,771.96
Government Equalities Office,Equality and Human Rights Commission,11/05/2011,Childcare Voucher Scheme,Corporate Management - People,Accor Services,iPOS Invoice 40041,"6,699.09"
Government Equalities Office,Equality and Human Rights Commission,18/05/2011,Cleaning Services,Wales Directorate,Keith Brooks,iPOS Invoice 40090,810.00
Government Equalities Office,Equality and Human Rights Commission,25/05/2011,Client Support,Statutory Committee - Disability,People First,iPOS Invoice 40208,625.00
Government Equalities Office,Equality and Human Rights Commission,11/05/2011,Commission Meeting Costs,Statutory Committee - Disability,Sttrs Direct,iPOS Invoice 39979,"1,056.00"
Government Equalities Office,Equality and Human Rights Commission,18/05/2011,Conference Attendees Costs - Localism Works,Strategy - Policy Public,Local Government Association,iPOS Invoice 40158,768.00
Government Equalities Office,Equality and Human Rights Commission,11/05/2011,Conference Interpreters Fees - Disability Harassment,Strategy - Disability Programme,Stt-Ubiqus (Palantype Services),iPOS Invoice 39997,"1,447.19"
Government Equalities Office,Equality and Human Rights Commission,11/05/2011,Conference Set Up/Equipment Costs - Disability Harassment,Strategy - Disability Programme,Stt-Ubiqus (Palantype Services),iPOS Invoice 40002,630.00
Government Equalities Office,Equality and Human Rights Commission,11/05/2011,Conference Set Up/Equipment Costs - Disability Harassment,Strategy - Disability Programme,Stt-Ubiqus (Palantype Services),iPOS Invoice 40000,812.88
Government Equalities Office,Equality and Human Rights Commission,04/05/2011,Conference Set Up/Equipment Costs - Equal Pay ,Strategy - Policy Private,UK Transcription Ltd,iPOS Invoice 39801,637.56
Government Equalities Office,Equality and Human Rights Commission,18/05/2011,Conference Set Up/Equipment Costs - Human Trafficking ,Scotland - Directorate,MCL Birmingham,iPOS Invoice 40134,501.78
Government Equalities Office,Equality and Human Rights Commission,11/05/2011,Conference Speakers Fees - Facts about wales,Wales Directorate,Alison Parken,iPOS Invoice 39972,575.00
Government Equalities Office,Equality and Human Rights Commission,11/05/2011,Conference Venue Costs - Equality Exchange network ,Wales Directorate,Trinity College,iPOS Invoice 39462,515.80
Government Equalities Office,Equality and Human Rights Commission,11/05/2011,Consultancy Costs Pay Review,Corporate Management - People,Veredus,iPOS Invoice 40029,945.88
Government Equalities Office,Equality and Human Rights Commission,11/05/2011,Consultancy Costs Pay Review,Corporate Management - People,Veredus,iPOS Invoice 40032,"3,071.93"
Government Equalities Office,Equality and Human Rights Commission,11/05/2011,Consultancy Costs Pay Review,Corporate Management - People,Veredus,iPOS Invoice 40030,"3,190.91"
Government Equalities Office,Equality and Human Rights Commission,25/05/2011,Corporate Membership Fees,Corporate Management - Corporate Governance,Central Law Training,iPOS Invoice 40233,780.00
Government Equalities Office,Equality and Human Rights Commission,18/05/2011,Couriers,Corporate Management - Buildings,E-Courier (UK) Ltd,iPOS Invoice 40167,613.31
Government Equalities Office,Equality and Human Rights Commission,04/05/2011,Electricity,Corporate Management - Buildings,Danmerc Property,iPOS Invoice 39914,660.00
Government Equalities Office,Equality and Human Rights Commission,04/05/2011,Electricity,Corporate Management - Buildings,Danmerc Property,iPOS Invoice 39915,"1,050.00"
Government Equalities Office,Equality and Human Rights Commission,11/05/2011,Equipment Purchase (Non-capital),Corporate Management - Buildings,Lovells LLP,iPOS Invoice 39981,"1,020.00"
Government Equalities Office,Equality and Human Rights Commission,25/05/2011,External Audit Fees,Corporate Management - People,David Richards,iPOS Invoice 40151,"15,491.55"
Government Equalities Office,Equality and Human Rights Commission,04/05/2011,External Printing,Commissioners Office,Hobs Reprographics,iPOS Invoice 39872,"1,680.00"
Government Equalities Office,Equality and Human Rights Commission,11/05/2011,External Printing,Commissioners Office,Hobs Reprographics,iPOS Invoice 39993,635.76
Government Equalities Office,Equality and Human Rights Commission,25/05/2011,External Printing,Commissioners Office,Hobs Reprographics,iPOS Invoice 40195,678.13
Government Equalities Office,Equality and Human Rights Commission,25/05/2011,External Printing,Commissioners Office,Hobs Reprographics,iPOS Invoice 40229,"1,734.30"
Government Equalities Office,Equality and Human Rights Commission,18/05/2011,Fit Out Costs,Corporate Management - Buildings,Contract Services R&R Limited,iPOS Invoice 40175,"23,246.64"
Government Equalities Office,Equality and Human Rights Commission,04/05/2011,Franking Machine Rental,Wales Directorate,Neopost Finance Ltd Quarterly Rentals only,iPOS Invoice 39887,537.60
Government Equalities Office,Equality and Human Rights Commission,25/05/2011,Grant Funding programme,Legal/Monitoring - Casework,Avon And Bristol Law Centre,201105013,"8,700.00"
Government Equalities Office,Equality and Human Rights Commission,12/05/2011,Grant Funding programme,Legal/Monitoring - Casework,Barking and Dagenham Citizens Advice Bureau,201105014,"9,000.00"
Government Equalities Office,Equality and Human Rights Commission,12/05/2011,Grant Funding programme,Legal/Monitoring - Casework,Barking and Dagenham Citizens Advice Bureau,201105015,"9,000.00"
Government Equalities Office,Equality and Human Rights Commission,18/05/2011,Grant Funding programme,Corporate Management - Grants Unit,Barking and Dagenham REC,201105016,"17,400.00"
Government Equalities Office,Equality and Human Rights Commission,25/05/2011,Grant Funding programme,Legal/Monitoring - Casework,Birmingham Disability Resource Centre,201105017,"4,006.00"
Government Equalities Office,Equality and Human Rights Commission,25/05/2011,Grant Funding programme,Legal/Monitoring - Casework,Birmingham Disability Resource Centre,201105018,"5,949.00"
Government Equalities Office,Equality and Human Rights Commission,18/05/2011,Grant Funding programme,Corporate Management - Grants Unit,British Institute of Human Rights,201105019,"17,500.00"
Government Equalities Office,Equality and Human Rights Commission,18/05/2011,Grant Funding programme,Corporate Management - Grants Unit,Cambridge Ethnic Community Forum,201105020,"14,064.75"
Government Equalities Office,Equality and Human Rights Commission,18/05/2011,Grant Funding programme,Corporate Management - Grants Unit,Cardiff Women's Aid,201105021,"13,500.00"
Government Equalities Office,Equality and Human Rights Commission,25/05/2011,Grant Funding programme,Legal/Monitoring - Casework,Castlemilk Law and Money Advice Centre,201105022,"14,716.00"
Government Equalities Office,Equality and Human Rights Commission,25/05/2011,Grant Funding programme,Legal/Monitoring - Casework,Citizens Advice East Sussex (CAES),201105023,"3,238.00"
Government Equalities Office,Equality and Human Rights Commission,25/05/2011,Grant Funding programme,Legal/Monitoring - Casework,Denbighshire CAB,201105024,"4,500.00"
Government Equalities Office,Equality and Human Rights Commission,18/05/2011,Grant Funding programme,Corporate Management - Grants Unit,DIAL Peterborough,201105025,"11,091.00"
Government Equalities Office,Equality and Human Rights Commission,26/05/2011,Grant Funding programme,Corporate Management - Grants Unit,Disability Action Waltham Forest,201105026,"16,875.00"
Government Equalities Office,Equality and Human Rights Commission,25/05/2011,Grant Funding programme,Legal/Monitoring - Casework,Ealing Racial Equality Council,201105027,"9,000.00"
Government Equalities Office,Equality and Human Rights Commission,26/05/2011,Grant Funding programme,Corporate Management - Grants Unit,Engender,201105028,"11,250.00"
Government Equalities Office,Equality and Human Rights Commission,18/05/2011,Grant Funding programme,Corporate Management - Grants Unit,Equality Network,201105029,"8,437.00"
Government Equalities Office,Equality and Human Rights Commission,18/05/2011,Grant Funding programme,Corporate Management - Grants Unit,Ethnic Alcohol Counselling in Hounslow,201105030,"9,000.00"
Government Equalities Office,Equality and Human Rights Commission,12/05/2011,Grant Funding programme,Legal/Monitoring - Casework,Flintshire Citizens Advice Bureaux,201105031,"2,000.00"
Government Equalities Office,Equality and Human Rights Commission,12/05/2011,Grant Funding programme,Legal/Monitoring - Casework,Flintshire Citizens Advice Bureaux,201105032,"9,868.00"
Government Equalities Office,Equality and Human Rights Commission,12/05/2011,Grant Funding programme,Legal/Monitoring - Casework,Flintshire Citizens Advice Bureaux,201105033,"12,680.00"
Government Equalities Office,Equality and Human Rights Commission,12/05/2011,Grant Funding programme,Legal/Monitoring - Casework,Flintshire Citizens Advice Bureaux,201105034,"13,500.00"
Government Equalities Office,Equality and Human Rights Commission,18/05/2011,Grant Funding programme,Corporate Management - Grants Unit,Gendered Intelligence,201105035,"7,499.70"
Government Equalities Office,Equality and Human Rights Commission,18/05/2011,Grant Funding programme,Corporate Management - Grants Unit,Glasgow Disability Alliance,201105036,"16,917.00"
Government Equalities Office,Equality and Human Rights Commission,18/05/2011,Grant Funding programme,Corporate Management - Grants Unit,Kingsway Health & Wellbeing Centre,201105037,"9,213.00"
Government Equalities Office,Equality and Human Rights Commission,25/05/2011,Grant Funding programme,Legal/Monitoring - Casework,Kirklees Law Centre,201105038,"9,297.00"
Government Equalities Office,Equality and Human Rights Commission,25/05/2011,Grant Funding programme,Legal/Monitoring - Casework,Leicester Community Law Service,201105039,"7,100.00"
Government Equalities Office,Equality and Human Rights Commission,25/05/2011,Grant Funding programme,Legal/Monitoring - Casework,Leicester Community Law Service,201105040,"9,818.00"
Government Equalities Office,Equality and Human Rights Commission,25/05/2011,Grant Funding programme,Legal/Monitoring - Casework,Leicester Community Law Service,201105041,"9,837.00"
Government Equalities Office,Equality and Human Rights Commission,25/05/2011,Grant Funding programme,Legal/Monitoring - Casework,Leicester Community Law Service,201105042,"10,833.00"
Government Equalities Office,Equality and Human Rights Commission,25/05/2011,Grant Funding programme,Legal/Monitoring - Casework,Leicester Community Law Service,201105043,"15,750.00"
Government Equalities Office,Equality and Human Rights Commission,18/05/2011,Grant Funding programme,Corporate Management - Grants Unit,Lincolnshire YMCA,201105044,"23,035.00"
Government Equalities Office,Equality and Human Rights Commission,18/05/2011,Grant Funding programme,Corporate Management - Grants Unit,Living Options Devon,201105045,"26,347.95"
Government Equalities Office,Equality and Human Rights Commission,18/05/2011,Grant Funding programme,Corporate Management - Grants Unit,Migrant  and Refugee Communities Forum,201105046,"8,867.50"
Government Equalities Office,Equality and Human Rights Commission,18/05/2011,Grant Funding programme,Corporate Management - Grants Unit,National Youth Theatre of Great Britain,201105047,"2,544.24"
Government Equalities Office,Equality and Human Rights Commission,12/05/2011,Grant Funding programme,Legal/Monitoring - Casework,Oxford Citizens Advice Bureau,201105048,"1,500.00"
Government Equalities Office,Equality and Human Rights Commission,12/05/2011,Grant Funding programme,Legal/Monitoring - Casework,Oxford Citizens Advice Bureau,201105049,"2,250.00"
Government Equalities Office,Equality and Human Rights Commission,25/05/2011,Grant Funding programme,Legal/Monitoring - Casework,Peterborough Rec,201105050,"1,550.00"
Government Equalities Office,Equality and Human Rights Commission,25/05/2011,Grant Funding programme,Legal/Monitoring - Casework,Peterborough Rec,201105051,"6,975.00"
Government Equalities Office,Equality and Human Rights Commission,12/05/2011,Grant Funding programme,Legal/Monitoring - Casework,Preston And Western Lancashire REC,201105052,"3,750.00"
Government Equalities Office,Equality and Human Rights Commission,26/05/2011,Grant Funding programme,Corporate Management - Grants Unit,The Runnymede Trust,201105053,"25,500.00"
Government Equalities Office,Equality and Human Rights Commission,18/05/2011,Grant Funding programme,Corporate Management - Grants Unit,Tyneside Rape Crisis Centre,201105054,"9,897.98"
Government Equalities Office,Equality and Human Rights Commission,18/05/2011,Health And Safety,Wales Directorate,Arm Electrical Contractors,iPOS Invoice 40073,687.60
Government Equalities Office,Equality and Human Rights Commission,25/05/2011,Health And Safety,Wales Directorate,Cardiff PAT Test,iPOS Invoice 40138,800.80
Government Equalities Office,Equality and Human Rights Commission,11/05/2011,Health Referrals,Corporate Management - People,Road to Health Ltd,iPOS Invoice 39970,792.00
Government Equalities Office,Equality and Human Rights Commission,04/05/2011,Helpline Costs,Intelligence & Engagement - Helpline,Bee Communications,iPOS Invoice 39910,526.56
Government Equalities Office,Equality and Human Rights Commission,31/05/2011,HM Customs and excise VAT,Corporate Management ,HMRC,201105057,"10,197.28"
Government Equalities Office,Equality and Human Rights Commission,25/05/2011,Intangible Assets Cost,Corporate Management - ICT,Tribal Education Ltd,iPOS Invoice 40189,"38,760.00"
Government Equalities Office,Equality and Human Rights Commission,25/05/2011,IT Hardware Maintenance Contracts,Corporate Management - ICT,VideoCentric Ltd,iPOS Invoice 40234,"4,419.60"
Government Equalities Office,Equality and Human Rights Commission,18/05/2011,IT Services,Corporate Management - ICT,DRS Ltd,iPOS Invoice 40080,"2,582.96"
Government Equalities Office,Equality and Human Rights Commission,04/05/2011,IT Services,Corporate Management - ICT,IBM,iPOS Invoice 39902,"11,700.00"
Government Equalities Office,Equality and Human Rights Commission,11/05/2011,Learning And Development,Corporate Management - People,Bray Leino Ltd,iPOS Invoice 40027,"1,338.00"
Government Equalities Office,Equality and Human Rights Commission,19/05/2011,Learning And Development,Corporate Management - People,Bray Leino Ltd,iPOS Invoice 40079,558.00
Government Equalities Office,Equality and Human Rights Commission,19/05/2011,Learning And Development,Corporate Management - People,Bray Leino Ltd,iPOS Invoice 40077,780.00
Government Equalities Office,Equality and Human Rights Commission,19/05/2011,Learning And Development,Corporate Management - People,Bray Leino Ltd,iPOS Invoice 40075,870.00
Government Equalities Office,Equality and Human Rights Commission,19/05/2011,Learning And Development,Corporate Management - People,Bray Leino Ltd,iPOS Invoice 40078,870.00
Government Equalities Office,Equality and Human Rights Commission,25/05/2011,Learning And Development,Corporate Management - People,Bray Leino Ltd,iPOS Invoice 40199,558.00
Government Equalities Office,Equality and Human Rights Commission,25/05/2011,Learning And Development,Corporate Management - People,Bray Leino Ltd,iPOS Invoice 40196,870.00
Government Equalities Office,Equality and Human Rights Commission,25/05/2011,Learning And Development,Corporate Management - People,Bray Leino Ltd,iPOS Invoice 40197,870.00
Government Equalities Office,Equality and Human Rights Commission,25/05/2011,Learning And Development,Corporate Management - People,Bray Leino Ltd,iPOS Invoice 40198,870.00
Government Equalities Office,Equality and Human Rights Commission,25/05/2011,Learning And Development,Corporate Management - People,Bray Leino Ltd,iPOS Invoice 40200,870.00
Government Equalities Office,Equality and Human Rights Commission,25/05/2011,Learning And Development,Corporate Management - People,Bray Leino Ltd,iPOS Invoice 40203,992.88
Government Equalities Office,Equality and Human Rights Commission,25/05/2011,Learning And Development,Corporate Management - People,Bray Leino Ltd,iPOS Invoice 40201,"1,061.28"
Government Equalities Office,Equality and Human Rights Commission,25/05/2011,Learning And Development,Corporate Management - People,Bray Leino Ltd,iPOS Invoice 40202,"1,345.68"
Government Equalities Office,Equality and Human Rights Commission,18/05/2011,Learning And Development,Corporate Management - Corporate Governance,Central Law Training,iPOS Invoice 40180,594.00
Government Equalities Office,Equality and Human Rights Commission,18/05/2011,Learning And Development,Corporate Management - People,Central Law Training,iPOS Invoice 40181,594.00
Government Equalities Office,Equality and Human Rights Commission,18/05/2011,Learning And Development,Corporate Management - People,CIPD,iPOS Invoice 40148,"1,380.00"
Government Equalities Office,Equality and Human Rights Commission,04/05/2011,Learning And Development,Corporate Management - People,ILX Group PLC,iPOS Invoice 39946,"1,554.00"
Government Equalities Office,Equality and Human Rights Commission,11/05/2011,Learning And Development,Corporate Management - People,LMD Learning Solutions Ltd,iPOS Invoice 40028,"2,580.00"
Government Equalities Office,Equality and Human Rights Commission,19/05/2011,Learning And Development,Corporate Management - People,Rezound Limited,iPOS Invoice 40169,"1,110.00"
Government Equalities Office,Equality and Human Rights Commission,25/05/2011,Legal Consultants,Legal - Legal Policy,Just Equal,iPOS Invoice 40185,"4,900.00"
Government Equalities Office,Equality and Human Rights Commission,18/05/2011,Library Costs,Corporate Management - Information Management,Sue Hill Recruitment & Services Ltd,iPOS Invoice 40109,"1,617.84"
Government Equalities Office,Equality and Human Rights Commission,11/05/2011,Marketing,Intelligence & Engagement - External Affairs,Emailvision (UK) Ltd,iPOS Invoice 40055,953.63
Government Equalities Office,Equality and Human Rights Commission,04/05/2011,Media Monitoring,Intelligence & Engagement - External Affairs,Echo Research Ltd,iPOS Invoice 39644,"5,101.92"
Government Equalities Office,Equality and Human Rights Commission,11/05/2011,Media Monitoring,Intelligence & Engagement - External Affairs,Echo Research Ltd,iPOS Invoice 39880,"2,369.86"
Government Equalities Office,Equality and Human Rights Commission,04/05/2011,Media Monitoring,Intelligence & Engagement - External Affairs,Press Data Bureau,iPOS Invoice 39653,"3,457.00"
Government Equalities Office,Equality and Human Rights Commission,11/05/2011,MFD Copy Cost,Corporate Management - ICT,The Danwood Group Ltd,iPOS Invoice 40013,"14,206.44"
Government Equalities Office,Equality and Human Rights Commission,18/05/2011,Payroll Processing Costs,Corporate Management - Finance,Ceridian Centrefile Ltd,iPOS Invoice 40092,"2,962.06"
Government Equalities Office,Equality and Human Rights Commission,18/05/2011,Pensions Administration,Corporate Management - People,DWP,iPOS Invoice 40084,"2,566.62"
Government Equalities Office,Equality and Human Rights Commission,31/05/2011,Procurement Card,Corporate Management,Lloyds Bank,201105056,789.94
Government Equalities Office,Equality and Human Rights Commission,04/05/2011,Professional Advice,Corporate Management - Buildings,Gva Grimley,iPOS Invoice 39917,"3,000.00"
Government Equalities Office,Equality and Human Rights Commission,04/05/2011,Publications Design,Legal - Legal Policy,Epigram,iPOS Invoice 39886,"1,080.00"
Government Equalities Office,Equality and Human Rights Commission,18/05/2011,Publications Printing,Strategy - Policy Public,Pelicanpress,iPOS Invoice 40143,"2,953.00"
Government Equalities Office,Equality and Human Rights Commission,11/05/2011,Publications Printing,Intelligence & Engagement - External Affairs,The Dot Factory,iPOS Invoice 40060,"3,838.80"
Government Equalities Office,Equality and Human Rights Commission,04/05/2011,Publications Translation,Legal/Monitoring - Enforcement,Fingertips Typing Services,iPOS Invoice 39812,"1,693.08"
Government Equalities Office,Equality and Human Rights Commission,04/05/2011,Publications Translation,Statutory Committee - Wales,K International Plc,iPOS Invoice 39659,"2,053.78"
Government Equalities Office,Equality and Human Rights Commission,25/05/2011,Publications Translation,Legal - Legal Policy,The Big Word,iPOS Invoice 40235,"14,479.87"
Government Equalities Office,Equality and Human Rights Commission,18/05/2011,Records Storage Costs,Corporate Management - Information Management,Iron Mountain (UK) Ltd,iPOS Invoice 40121,"2,626.28"
Government Equalities Office,Equality and Human Rights Commission,18/05/2011,Rent,Corporate Management - Buildings,AMAS Ltd,iPOS Invoice 40174,"243,845.70"
Government Equalities Office,Equality and Human Rights Commission,04/05/2011,Rent,Corporate Management - Buildings,Danmerc Property,iPOS Invoice 39908,"28,009.20"
Government Equalities Office,Equality and Human Rights Commission,04/05/2011,Rent,Corporate Management - Buildings,Danmerc Property,iPOS Invoice 39903,"39,790.20"
Government Equalities Office,Equality and Human Rights Commission,04/05/2011,Rent,Corporate Management - Buildings,KWB Property Management Ltd,iPOS Invoice 39906,"28,830.00"
Government Equalities Office,Equality and Human Rights Commission,04/05/2011,Rent,Corporate Management - Buildings,Mwb Business Exchange Centres,iPOS Invoice 39591,"2,076.00"
Government Equalities Office,Equality and Human Rights Commission,11/05/2011,Research,Scotland - Directorate,London South Bank University,iPOS Invoice 40014,"15,846.00"
Government Equalities Office,Equality and Human Rights Commission,25/05/2011,Seconded Staff,Scotland - Directorate,Glasgow Centre for Inclusive Living,iPOS Invoice 40191,"2,662.67"
Government Equalities Office,Equality and Human Rights Commission,25/05/2011,Seconded Staff,Scotland - Directorate,Glasgow Centre for Inclusive Living,iPOS Invoice 40194,"2,662.67"
Government Equalities Office,Equality and Human Rights Commission,18/05/2011,Seconded Staff,Intelligence & Engagement - English Regions,Ofsted,iPOS Invoice 40086,"3,375.32"
Government Equalities Office,Equality and Human Rights Commission,18/05/2011,Seconded Staff,Intelligence & Engagement - English Regions,Ofsted,iPOS Invoice 40087,"3,375.32"
Government Equalities Office,Equality and Human Rights Commission,18/05/2011,Security,Corporate Management - Buildings,Edenbrown,iPOS Invoice 40105,519.98
Government Equalities Office,Equality and Human Rights Commission,18/05/2011,Security,Corporate Management - Buildings,Edenbrown,iPOS Invoice 40103,527.52
Government Equalities Office,Equality and Human Rights Commission,18/05/2011,Security,Corporate Management - Buildings,Edenbrown,iPOS Invoice 40104,527.52
Government Equalities Office,Equality and Human Rights Commission,04/05/2011,Security,Corporate Management - Buildings,Hays Accountancy Personnel,iPOS Invoice 39953,507.08
Government Equalities Office,Equality and Human Rights Commission,04/05/2011,Security,Corporate Management - Buildings,Hays Accountancy Personnel,iPOS Invoice 39949,"1,575.84"
Government Equalities Office,Equality and Human Rights Commission,04/05/2011,Security,Corporate Management - Buildings,Hays Accountancy Personnel,iPOS Invoice 39950,"1,755.27"
Government Equalities Office,Equality and Human Rights Commission,04/05/2011,Security,Corporate Management - Buildings,Hays Accountancy Personnel,iPOS Invoice 39954,"1,948.88"
Government Equalities Office,Equality and Human Rights Commission,04/05/2011,Security,Corporate Management - Buildings,Hays Accountancy Personnel,iPOS Invoice 39955,"2,070.86"
Government Equalities Office,Equality and Human Rights Commission,04/05/2011,Security,Corporate Management - Buildings,Hays Accountancy Personnel,iPOS Invoice 39951,"2,088.59"
Government Equalities Office,Equality and Human Rights Commission,04/05/2011,Service Charge,Corporate Management - Buildings,Danmerc Property,iPOS Invoice 39904,"6,986.56"
Government Equalities Office,Equality and Human Rights Commission,04/05/2011,Service Charge,Corporate Management - Buildings,Danmerc Property,iPOS Invoice 39911,"10,059.07"
Government Equalities Office,Equality and Human Rights Commission,05/05/2011,Settlement Costs,Legal/Monitoring - Casework,Clarkson Wright & Jakes LLP,iPOS Invoice 39964,"9,645.00"
Government Equalities Office,Equality and Human Rights Commission,04/05/2011,Sponsored Study,Commissioners Office,Hemsley Fraser Group Ltd,iPOS Invoice 39672,682.80
Government Equalities Office,Equality and Human Rights Commission,25/05/2011,Stationery,Corporate Management - Buildings,Banner Business Supplies Ltd,201105055,"3,922.11"
Government Equalities Office,Equality and Human Rights Commission,11/05/2011,Stationery,Not Applicable,Banner Business Supplies Ltd,201105058,"2,181.09"
Government Equalities Office,Equality and Human Rights Commission,11/05/2011,Telephone Call Charges,Corporate Management - ICT,BT Onebillplus,iPOS Invoice 40033,"1,603.87"
Government Equalities Office,Equality and Human Rights Commission,11/05/2011,Travel Costs,Corporate Management - Buildings,Carlson Wagonlit Travel,201105001,"3,120.81"
Government Equalities Office,Equality and Human Rights Commission,11/05/2011,Travel Costs,Corporate Management - Buildings,Carlson Wagonlit Travel,201105003,"8,000.79"
Government Equalities Office,Equality and Human Rights Commission,18/05/2011,Travel Costs,Corporate Management - Buildings,Carlson Wagonlit Travel,201105002,"6,900.61"
Government Equalities Office,Equality and Human Rights Commission,11/05/2011,WAN Expenditure,Corporate Management - ICT,BT Global Services,iPOS Invoice 40058,"47,087.00"
,,,,,,,"1,483,075.92"
